bitfinex/quotes_SOLUSD_20260203
["timestamp","ask_amount","ask_price","bid_price","bid_amount"]
[1770076802903,5.13864326,104.67,104.64,0.43881104]
[1770076803409,0.4739853,104.66,104.6,8.45068184]
[1770076803617,0.4739853,104.66,104.62,0.43881104]
[1770076804417,5.13864326,104.67,104.62,0.43881104]
[1770076804916,4.66465796,104.67,104.62,0.43881104]
[1770076805120,5.13864326,104.67,104.62,0.43881104]
[1770076805418,0.4739853,104.67,104.61,0.43881104]
[1770076806001,0.4739853,104.66,104.62,0.43881104]
[1770076806207,0.4739853,104.66,104.63,0.43881104]
[1770076807013,0.4739853,104.68,104.64,0.43881104]
[1770076808221,7.19284569,104.69,104.64,0.43881104]
[1770076809300,7.19284569,104.69,104.66,0.43881104]
[1770076810221,6.71886039,104.69,104.66,0.43881104]
[1770076810727,0.5,104.72,104.65,33.72913918]
[1770076811417,9.64798759,104.74,104.66,0.28432314]
[1770076811418,0.6,104.74,104.66,0.28432314]
[1770076811621,0.1,104.74,104.66,14.09586686]
[1770076812323,0.6,104.74,104.66,14.09586686]
[1770076812823,0.6,104.74,104.66,8.73500498]
[1770076813340,0.6,104.74,104.68,0.28432314]
[1770076813504,0.1,104.74,104.68,0.28432314]
[1770076813706,0.1,104.74,104.68,26.82432314]
[1770076815232,0.1,104.74,104.7,0.28432314]
[1770076818729,0.6,104.74,104.69,23.88002674]
[1770076819023,0.6,104.74,104.69,24.16434988]
[1770076819715,0.1,104.74,104.7,33.42841721]
[1770076820113,0.6,104.74,104.7,33.42841721]
[1770076820624,0.1,104.74,104.7,33.42841721]
[1770076822609,0.1,104.75,104.71,0.28432314]
[1770076822810,6.47626863,104.76,104.71,103.18432314]
[1770076823025,0.1,104.77,104.73,0.28432314]
[1770076823614,0.1,104.77,104.73,103.18432314]
[1770076823615,1e-08,104.77,104.73,103.18432314]
[1770076825023,1e-08,104.77,104.75,0.28432314]
[1770076825808,0.50000001,104.77,104.74,9.83177397]
[1770076826130,0.50000001,104.77,104.73,112.73224661]
[1770076829533,0.50000001,104.77,104.73,9.54792347]
[1770076829715,0.50000001,104.77,104.72,36.08880446]
[1770076831034,0.50000001,104.77,104.73,9.54807374]
[1770076835330,0.50000001,104.77,104.73,33.41897987]
[1770076836940,0.50000001,104.77,104.73,9.54807374]
[1770076837138,0.50000001,104.77,104.67,111.35068184]
[1770076837325,0.5,104.76,104.68,9.5522765]
[1770076837520,0.5,104.76,104.67,36.07336551]
[1770076837733,0.5,104.74,104.67,36.07336551]
[1770076838928,0.5,104.74,104.67,36.07383408]
[1770076840334,0.5,104.72,104.67,9.55383408]
[1770076842530,0.5,104.72,104.66,88.79851791]
[1770076842531,0.5,104.71,104.66,88.79851791]
[1770076842730,0.5,104.71,104.66,79.24398497]
[1770076843239,0.5,104.71,104.66,52.72398497]
[1770076844250,0.5,104.71,104.66,62.27861968]
[1770076844436,0.5,104.71,104.66,52.72398497]
[1770076844745,0.5,104.7,104.66,52.72398497]
[1770076846861,0.5,104.69,104.66,52.72398497]
[1770076848557,0.5,104.7,104.66,62.27865036]
[1770076850950,0.5,104.7,104.66,52.72398497]
[1770076853135,0.5,104.69,104.66,52.72398497]
[1770076853448,0.5,104.69,104.66,52.22398497]
[1770076853655,0.5,104.69,104.66,48.52409464]
[1770076854347,0.5,104.69,104.64,0.5]
[1770076855358,9.55292319,104.68,104.63,27.04]
[1770076855656,33.43523117,104.68,104.63,0.5]
[1770076856257,33.43523117,104.68,104.62,0.5]
[1770076857454,5.36086188,104.7,104.62,0.5]
[1770076858335,33.43203743,104.69,104.62,0.5]
[1770076859051,33.43203743,104.69,104.6,0.5]
[1770076859443,81.19209092,104.69,104.6,0.5]
[1770076859862,5.36086188,104.68,104.6,0.5]
[1770076860250,62.08806953,104.69,104.6,10.05984615]
[1770076860452,88.62806953,104.69,104.61,0.5]
[1770076861452,5.36086188,104.68,104.59,0.5]
[1770076861750,30.81527085,104.67,104.58,52.0745689]
[1770076861956,5.36086188,104.66,104.58,52.0745689]
[1770076862257,31.90086188,104.66,104.58,52.0745689]
[1770076862463,33.44481604,104.65,104.58,52.0745689]
[1770076863774,33.44481604,104.65,104.59,0.5]
[1770076864767,23.88915432,104.65,104.59,0.5]
[1770076866273,9.55474871,104.66,104.6,0.5]
[1770076867252,33.44162048,104.66,104.6,0.5]
[1770076872273,30.83527085,104.67,104.6,0.5]
[1770076872478,5.36086188,104.66,104.6,0.5]
[1770076873675,31.92086188,104.66,104.6,0.5]
[1770076874174,5.36086188,104.66,104.6,0.5]
[1770076875178,5.36086188,104.66,104.59,0.5]
[1770076879279,5.36086188,104.64,104.58,52.0745689]
[1770076879475,5.36086188,104.64,104.58,0.5]
[1770076879875,5.36086188,104.64,104.57,0.2]
[1770076880182,4.27527085,104.63,104.57,0.2]
[1770076880774,30.83527085,104.63,104.57,0.2]
[1770076881364,30.83527085,104.63,104.57,0.7]
[1770076881860,4.27527085,104.63,104.57,0.7]
[1770076882880,4.27527085,104.63,104.58,0.5]
[1770076886986,4.27527085,104.63,104.57,0.7]
[1770076888088,5.36086188,104.62,104.57,0.2]
[1770076892294,4.27527085,104.61,104.58,0.5]
[1770076892482,4.27527085,104.61,104.57,0.7]
[1770076893793,26.58,104.63,104.58,0.5]
[1770076895290,4.27527085,104.64,104.58,0.5]
[1770076895492,5.36086188,104.66,104.58,0.5]
[1770076895787,26.58,104.69,104.58,0.5]
[1770076896181,30.85527085,104.69,104.58,0.5]
[1770076896996,5.36086188,104.68,104.58,0.5]
[1770076897377,5.36086188,104.66,104.58,0.5]
[1770076898476,5.36086188,104.66,104.53,8.27310857]
[1770076898477,5.36086188,104.56,104.51,0.7]
[1770076898682,4.191,104.48,104.46,5.19925093]
[1770076899000,4.191,104.48,104.46,0.2]
[1770076900890,4.191,104.48,104.44,0.5]
[1770076901196,4.191,104.48,104.39,0.5]
[1770076903076,4.191,104.48,104.41,0.5]
[1770076903275,4.27527085,104.46,104.39,0.5]
[1770076903485,5.36086188,104.45,104.37,0.5]
[1770076903686,4.27527085,104.42,104.37,0.5]
[1770076903893,5.36086188,104.41,104.37,0.5]
[1770076904089,4.27527085,104.42,104.36,0.5]
[1770076904290,38.91105061,104.45,104.36,0.5]
[1770076905294,5.36086188,104.44,104.36,0.5]
[1770076905688,39.68660164,104.44,104.36,0.5]
[1770076908297,39.68660164,104.44,104.35,0.3250369]
[1770076908298,4.27527085,104.41,104.35,0.3250369]
[1770076908485,4.27527085,104.41,104.35,0.8250369]
[1770076908678,4.27527085,104.41,104.36,0.5]
[1770076909004,36.22664496,104.41,104.36,0.5]
[1770076911387,36.22664496,104.41,104.34,0.28432314]
[1770076913101,36.22664496,104.41,104.33,4.27527085]
[1770076913300,36.22664496,104.41,104.34,0.28432314]
[1770076913509,36.22664496,104.41,104.35,0.46195445]
[1770076915790,34.72664496,104.41,104.36,0.28432314]
[1770076921814,35.22664496,104.41,104.36,4.27527085]
[1770076922801,0.5,104.4,104.33,0.28432314]
[1770076923006,0.5,104.4,104.32,30.89527085]
[1770076923205,0.5,104.4,104.33,0.28432314]
[1770076923405,35.22664496,104.41,104.33,0.14216157]
[1770076923803,35.22664496,104.41,104.33,0.28432314]
[1770076924203,35.22664496,104.41,104.35,0.28432314]
[1770076925315,0.5,104.4,104.35,4.27527085]
[1770076934205,0.5,104.4,104.34,0.28432314]
[1770076934406,0.5,104.4,104.28,0.2]
[1770076935623,0.5,104.38,104.28,0.2]
[1770076936423,0.5,104.38,104.31,4.27527085]
[1770076938429,0.5,104.38,104.3,0.28432314]
[1770076939728,0.5,104.38,104.3,4.55959399]
[1770076944632,0.5,104.38,104.31,4.27527085]
[1770076949143,0.5,104.38,104.28,0.2]
[1770076950433,0.5,104.38,104.29,0.28432314]
[1770076951033,0.5,104.38,104.29,4.55959399]
[1770076952823,0.5,104.38,104.31,0.28432314]
[1770076953220,0.5,104.38,104.31,4.55959399]
[1770076954817,0.5,104.42,104.31,4.55959399]
[1770076955726,0.5,104.42,104.33,0.14216157]
[1770076956042,0.5,104.42,104.34,0.14216157]
[1770076957923,0.5,104.42,104.34,4.41743242]
[1770076958123,0.5,104.42,104.35,0.14216157]
[1770076960244,0.5,104.42,104.34,4.27527085]
[1770076960428,0.5,104.42,104.35,0.28432314]
[1770076964831,0.5,104.42,104.34,4.27527085]
[1770076965433,0.5,104.42,104.32,4.27527085]
[1770076971354,0.5,104.4,104.32,13.86078084]
[1770076975150,9.57946163,104.39,104.32,13.86078084]
[1770076975358,0.5,104.38,104.32,13.86078084]
[1770076976357,0.5,104.37,104.31,9.58639302]
[1770076978155,0.5,104.37,104.3,13.86253695]
[1770076978353,0.5,104.37,104.3,9.5872661]
[1770076978556,0.5,104.35,104.29,33.84384429]
[1770076979063,0.5,104.35,104.29,9.58864704]
[1770076980262,0.5,104.34,104.29,9.58864704]
[1770076982070,0.5,104.34,104.29,33.56026464]
[1770076982242,0.5,104.35,104.29,33.56026464]
[1770076983466,0.5,104.36,104.3,4.55959399]
[1770076983662,0.5,104.38,104.32,4.27527085]
[1770076984362,0.5,104.38,104.33,9.58497076]
[1770076984869,0.5,104.39,104.33,33.54739767]
[1770076987495,0.5,104.39,104.33,60.18739767]
[1770076988163,0.5,104.38,104.33,60.18739767]
[1770076988376,0.5,104.38,104.33,36.22497076]
[1770076991164,0.5,104.38,104.33,60.18739767]
[1770076995876,0.5,104.38,104.33,33.54739767]
[1770076998275,0.5,104.38,104.33,9.58497076]
[1770076998777,0.5,104.37,104.32,36.20539352]
[1770077003358,0.5,104.38,104.33,0.28432314]
[1770077004675,0.5,104.38,104.32,64.44538829]
[1770077005772,0.5,104.38,104.32,40.48066437]
[1770077005964,10.08042956,104.38,104.32,40.48066437]
[1770077006165,0.5,104.37,104.32,40.48066437]
[1770077010682,0.5,104.36,104.31,9.58652212]
[1770077010869,0.5,104.36,104.3,36.20738649]
[1770077011464,0.5,104.36,104.3,36.20740191]
[1770077011660,9.58267607,104.36,104.3,36.20740191]
[1770077011861,0.5,104.35,104.3,36.20740191]
[1770077016785,0.5,104.39,104.3,60.17672118]
[1770077017572,0.5,104.39,104.31,0.28432314]
[1770077018763,0.5,104.38,104.32,33.55061349]
[1770077021477,0.5,104.39,104.33,0.28432314]
[1770077021672,0.5,104.39,104.34,26.64]
[1770077021987,0.5,104.41,104.34,30.91527085]
[1770077022465,0.5,104.41,104.35,0.28432314]
[1770077023671,0.5,104.41,104.39,3.52985217]
[1770077024581,0.48048812,104.4,104.36,0.46033899]
[1770077024783,0.48048812,104.4,104.37,3.52985217]
[1770077025167,0.48048812,104.4,104.36,3.52985217]
[1770077026493,0.48048812,104.4,104.37,3.52985217]
[1770077028371,0.48048812,104.39,104.36,3.52985217]
[1770077028989,0.48048812,104.39,104.37,3.52985217]
[1770077030071,0.48048812,104.39,104.35,10.04328269]
[1770077030273,0.48048812,104.39,104.36,3.52985217]
[1770077030567,0.48048812,104.39,104.37,3.52985217]
[1770077030971,0.48048812,104.39,104.38,3.52985217]
[1770077032506,0.48048812,104.39,104.37,3.52985217]
[1770077034200,0.48048812,104.39,104.36,3.99270412]
[1770077034395,0.48048812,104.39,104.37,3.52985217]
[1770077038502,0.48048812,104.39,104.36,3.99270412]
[1770077040116,0.47081078,104.38,104.35,3.52985217]
[1770077040410,13.10933918,104.39,104.31,3.99270412]
[1770077040411,0.47081078,104.35,104.31,3.99270412]
[1770077040582,0.47081078,104.33,104.3,3.99270412]
[1770077040782,0.47081078,104.33,104.31,3.52985217]
[1770077041195,0.47081078,104.34,104.31,3.99270412]
[1770077042778,0.47081078,104.34,104.3,3.99270412]
[1770077042985,0.47081078,104.33,104.3,3.99270412]
[1770077043285,0.47081078,104.32,104.28,0.66285195]
[1770077043476,0.47081078,104.32,104.28,4.19270412]
[1770077044587,0.47081078,104.33,104.3,3.99270412]
[1770077045003,0.47081078,104.34,104.31,3.99270412]
[1770077045193,0.47081078,104.34,104.31,3.52985217]
[1770077046287,0.47081078,104.34,104.31,3.99270412]
[1770077046591,0.47081078,104.34,104.31,3.52985217]
[1770077048205,0.47081078,104.34,104.3,3.99270412]
[1770077048708,0.47081078,104.34,104.31,3.52985217]
[1770077049009,0.47081078,104.34,104.31,3.99270412]
[1770077049511,0.47081078,104.34,104.31,3.52985217]
[1770077050291,9.5840613,104.34,104.3,3.99270412]
[1770077050493,0.47081078,104.33,104.3,3.99270412]
[1770077051808,0.47081078,104.32,104.28,0.66285195]
[1770077052010,0.47081078,104.32,104.29,3.99270412]
[1770077052397,0.47081078,104.32,104.3,3.52985217]
[1770077052601,13.11427341,104.34,104.31,3.52985217]
[1770077052602,0.47081078,104.33,104.31,3.52985217]
[1770077053002,0.47081078,104.33,104.3,3.99270412]
[1770077055519,0.47081078,104.33,104.28,0.2]
[1770077055520,0.47081078,104.31,104.28,3.52985217]
[1770077055696,0.47081078,104.32,104.28,3.52985217]
[1770077055898,0.47081078,104.32,104.29,3.52985217]
[1770077056529,0.47081078,104.32,104.3,3.52985217]
[1770077057799,23.95753711,104.36,104.32,0.48540539]
[1770077058017,9.58355459,104.35,104.32,0.48540539]
[1770077058205,13.11340676,104.35,104.31,3.52985217]
[1770077058409,13.11340676,104.35,104.31,4.01525756]
[1770077058919,3.52985217,104.34,104.3,4.01525756]
[1770077059324,37.07124097,104.35,104.31,0.48540539]
[1770077059707,37.07124097,104.35,104.31,4.01525756]
[1770077059904,0.02918922,104.34,104.31,4.01525756]
[1770077060122,0.02918922,104.33,104.3,4.02315742]
[1770077060529,0.02918922,104.34,104.3,4.02315742]
[1770077061124,0.02918922,104.34,104.31,3.52985217]
[1770077061419,0.02918922,104.34,104.32,3.52985217]
[1770077062030,0.02918922,104.34,104.31,4.02315742]
[1770077063921,0.02918922,104.34,104.32,3.52985217]
[1770077065108,9.61274381,104.35,104.32,4.02315742]
[1770077065705,0.02918922,104.35,104.32,4.02315742]
[1770077066220,13.14033869,104.37,104.33,0.49330525]
[1770077066424,3.55904139,104.36,104.32,4.02315742]
[1770077066722,33.56372978,104.37,104.33,4.02315742]
[1770077067227,0.02918922,104.33,104.3,0.49330525]
[1770077067407,0.02918922,104.34,104.3,4.02315742]
[1770077067610,13.14335678,104.34,104.3,4.02315742]
[1770077068527,9.61350461,104.34,104.3,4.02315742]
[1770077068727,9.61350461,104.34,104.31,0.49330525]
[1770077070627,9.61277327,104.35,104.32,0.49330525]
[1770077070834,9.61277327,104.35,104.32,4.02315742]
[1770077071501,0.02918922,104.34,104.31,4.02315742]
[1770077071926,0.02918922,104.34,104.31,0.49330525]
[1770077072229,0.02918922,104.34,104.31,4.02315742]
[1770077073630,0.02918922,104.32,104.29,3.52985217]
[1770077073928,0.02918922,104.32,104.29,4.02315742]
[1770077074823,0.02918922,104.33,104.3,3.52985217]
[1770077075031,0.02918922,104.33,104.3,4.02315742]
[1770077075337,0.02918922,104.33,104.29,4.02315742]
[1770077075523,0.02918922,104.33,104.3,3.52985217]
[1770077075826,0.02918922,104.33,104.29,0.49330525]
[1770077076038,0.02918922,104.33,104.3,3.52985217]
[1770077076721,0.02918922,104.33,104.3,4.02315742]
[1770077077127,0.02918922,104.33,104.3,3.52985217]
[1770077078127,0.02918922,104.33,104.29,0.49330525]
[1770077078319,0.02918922,104.33,104.3,3.52985217]
[1770077078524,0.02918922,104.33,104.3,3.53646671]
[1770077079436,3.56565593,104.33,104.29,3.53646671]
[1770077079622,3.53646671,104.33,104.29,4.03646671]
[1770077080026,4.27527085,104.37,104.29,0.5]
[1770077080224,3.53646671,104.33,104.29,4.03646671]
[1770077080930,3.53646671,104.34,104.29,4.03646671]
[1770077081135,33.53775392,104.36,104.3,3.53646671]
[1770077081335,3.53646671,104.34,104.3,3.53646671]
[1770077081517,9.58491674,104.34,104.31,4.03646671]
[1770077082519,33.54177801,104.35,104.31,0.5]
[1770077082824,33.54177801,104.35,104.31,4.03646671]
[1770077083134,37.07824472,104.35,104.31,4.03646671]
[1770077083541,3.53646671,104.34,104.3,4.03646671]
[1770077083838,37.07824472,104.35,104.3,4.03646671]
[1770077084239,37.07824472,104.35,104.31,3.53646671]
[1770077086837,33.54177801,104.35,104.31,4.03646671]
[1770077087418,33.54177801,104.35,104.32,3.53646671]
[1770077087625,33.54177801,104.35,104.31,4.03646671]
[1770077087825,37.07824472,104.35,104.31,4.03646671]
[1770077088533,37.07824472,104.35,104.31,0.5]
[1770077088739,37.07824472,104.35,104.31,4.03646671]
[1770077094944,37.07824472,104.35,104.27,26.18474585]
[1770077094945,37.07824472,104.35,104.3,0.5]
[1770077095151,37.07824472,104.35,104.3,4.03646671]
[1770077095624,37.07824472,104.35,104.3,0.5]
[1770077095825,37.07824472,104.35,104.31,0.5]
[1770077096750,3.53646671,104.33,104.28,0.5]
[1770077097046,13.12327526,104.31,104.27,6.24576513]
[1770077097225,9.58680855,104.31,104.28,4.03646671]
[1770077098854,9.58680855,104.31,104.27,2.20929842]
[1770077099151,71.88082218,104.34,104.27,2.70929842]
[1770077099329,3.53646671,104.31,104.27,6.24576513]
[1770077100652,3.53646671,104.33,104.29,0.5]
[1770077101037,13.12235628,104.32,104.29,0.5]
[1770077101353,9.58588957,104.32,104.29,0.5]
[1770077101659,23.96327248,104.33,104.3,0.5]
[1770077101826,3.53646671,104.34,104.3,4.03646671]
[1770077103846,47.96178112,104.37,104.27,11.79928175]
[1770077103847,3.53646671,104.36,104.32,0.5]
[1770077104057,3.53646671,104.35,104.31,4.03646671]
[1770077104259,3.53646671,104.34,104.31,0.5]
[1770077105058,3.53646671,104.34,104.3,0.5]
[1770077105276,5.36086188,104.36,104.3,4.03646671]
[1770077105440,3.53646671,104.34,104.3,4.03646671]
[1770077105867,13.12143747,104.33,104.29,0.5]
[1770077106149,13.12143747,104.33,104.27,2.20929842]
[1770077106150,3.53646671,104.32,104.28,0.5]
[1770077106342,3.53646671,104.31,104.28,0.5]
[1770077106536,3.53646671,104.31,104.27,2.20929842]
[1770077106738,3.53646671,104.29,104.25,0.5]
[1770077107452,3.53646671,104.28,104.25,0.5]
[1770077107955,13.12604598,104.28,104.25,0.5]
[1770077108150,3.53646671,104.27,104.24,0.5]
[1770077110164,13.12725338,104.27,104.24,0.5]
[1770077110338,13.12652516,104.28,104.25,0.5]
[1770077113161,9.58916693,104.29,104.26,0.5]
[1770077113457,32.20108269,104.33,104.28,0.5]
[1770077113650,3.53646671,104.32,104.28,0.5]
[1770077114042,3.53646671,104.32,104.28,4.03646671]
[1770077114244,9.58523068,104.33,104.3,0.5]
[1770077114446,13.12169739,104.33,104.3,0.5]
[1770077114652,3.53646671,104.32,104.28,0.5]
[1770077115759,3.53646671,104.31,104.28,0.5]
[1770077116657,13.1239002,104.31,104.28,0.5]
[1770077118157,37.09092157,104.31,104.27,0.5]
[1770077118352,3.53646671,104.3,104.27,0.5]
[1770077118749,3.53646671,104.29,104.26,0.5]
[1770077118950,3.53646671,104.3,104.26,0.5]
[1770077121563,9.58864704,104.29,104.27,0.5]
[1770077122661,9.58864704,104.29,104.25,0.5]
[1770077122662,37.09673135,104.29,104.25,0.5]
[1770077122963,3.53646671,104.28,104.25,0.5]
[1770077123648,37.09673135,104.29,104.25,0.5]
[1770077125551,9.59048623,104.27,104.25,0.5]
[1770077126155,13.12655998,104.28,104.25,0.5]
[1770077126357,3.53646671,104.27,104.24,0.5]
[1770077126550,13.12655998,104.28,104.24,0.5]
[1770077127665,13.12747668,104.27,104.24,0.5]
[1770077128867,3.53646671,104.26,104.23,0.5]
[1770077129051,3.53646671,104.25,104.22,0.7]
[1770077129550,33.56722556,104.27,104.22,0.2]
[1770077129551,3.53646671,104.24,104.22,0.2]
[1770077129745,13.13063345,104.23,104.21,0.2]
[1770077130142,3.53646671,104.24,104.21,0.7]
[1770077131757,9.59416674,104.23,104.21,0.2]
[1770077131956,13.13063345,104.23,104.21,0.2]
[1770077132161,9.59416674,104.23,104.21,0.2]
[1770077132875,13.13063345,104.23,104.21,0.2]
[1770077133253,13.13063345,104.23,104.19,0.7]
[1770077133254,33.5795836,104.23,104.19,0.7]
[1770077133461,37.11605031,104.23,104.2,0.5]
[1770077135268,9.59349097,104.24,104.21,4.03646671]
[1770077135472,27.51532013,104.26,104.22,0.5]
[1770077135674,23.97885342,104.26,104.22,0.5]
[1770077135852,27.51532013,104.26,104.22,4.03646671]
[1770077136047,37.10672623,104.26,104.22,4.03646671]
[1770077136546,37.10672623,104.26,104.22,0.5]
[1770077137052,37.10672623,104.26,104.22,4.03646671]
[1770077137872,33.57025952,104.26,104.22,4.03646671]
[1770077138169,33.57025952,104.26,104.23,4.03646671]
[1770077138170,9.5914061,104.26,104.23,4.03646671]
[1770077138369,9.5914061,104.26,104.23,4.04133831]
[1770077140277,13.13208621,104.27,104.24,0.5]
[1770077140673,9.5907479,104.27,104.24,0.5]
[1770077140860,13.13208621,104.27,104.24,0.5]
[1770077143262,9.5907479,104.27,104.24,4.04133831]
[1770077143464,13.12998535,104.29,104.26,0.5]
[1770077146871,47.92994705,104.32,104.28,4.04133831]
[1770077146872,13.12722788,104.32,104.28,4.04133831]
[1770077147059,3.54133831,104.31,104.28,0.5]
[1770077147260,3.54133831,104.3,104.28,0.5]
[1770077147466,3.54133831,104.3,104.27,0.5]
[1770077147867,3.54133831,104.31,104.27,0.5]
[1770077148368,3.54133831,104.31,104.27,4.04133831]
[1770077149280,33.55704697,104.3,104.27,0.5]
[1770077149485,37.09838528,104.3,104.27,0.5]
[1770077149666,3.54133831,104.29,104.27,0.5]
[1770077149862,9.5877277,104.3,104.28,0.5]
[1770077150069,9.58680855,104.31,104.29,0.5]
[1770077150273,9.58680855,104.31,104.28,0.5]
[1770077150675,37.09516823,104.31,104.28,0.5]
[1770077151183,37.09516823,104.31,104.26,0.5]
[1770077151184,3.54133831,104.29,104.26,0.5]
[1770077151374,13.13051025,104.29,104.26,0.5]
[1770077151568,9.58917194,104.29,104.26,0.5]
[1770077154181,13.13051025,104.29,104.26,0.5]
[1770077154386,3.54133831,104.28,104.24,0.5]
[1770077154576,3.54133831,104.27,104.24,0.5]
[1770077154983,3.54133831,104.26,104.24,0.5]
[1770077155167,3.54133831,104.28,104.24,0.5]
[1770077155893,3.54133831,104.28,104.25,0.5]
[1770077155894,13.13151014,104.28,104.25,0.5]
[1770077156792,9.5877277,104.3,104.25,4.04133831]
[1770077156997,3.54133831,104.29,104.26,0.5]
[1770077157293,3.54133831,104.28,104.25,0.5]
[1770077157676,3.54133831,104.29,104.25,0.5]
[1770077158089,9.58956655,104.28,104.25,0.5]
[1770077159989,9.58907744,104.29,104.26,0.5]
[1770077160196,27.51065758,104.3,104.27,4.04133831]
[1770077160197,9.58819234,104.3,104.27,4.04133831]
[1770077160394,9.58819234,104.3,104.28,0.5]
[1770077160587,9.58680855,104.31,104.29,0.5]
[1770077162694,9.58680855,104.31,104.28,0.5]
[1770077163897,37.09516823,104.31,104.28,0.5]
[1770077164381,3.54133831,104.29,104.26,0.5]
[1770077164783,3.54133831,104.3,104.26,0.5]
[1770077166690,13.12998535,104.29,104.26,0.5]
[1770077166884,3.54133831,104.27,104.24,0.5]
[1770077170997,13.1320828,104.27,104.24,0.5]
[1770077171805,3.54133831,104.26,104.24,0.5]
[1770077172297,3.54133831,104.26,104.23,0.28725061]
[1770077173399,37.32104778,104.27,104.23,0.28725061]
[1770077174805,3.54133831,104.26,104.23,0.28725061]
[1770077176696,13.13317491,104.26,104.23,0.28725061]
[1770077176882,3.54133831,104.27,104.24,0.47355065]
[1770077177084,13.13236904,104.27,104.24,0.47355065]
[1770077177498,13.34511843,104.27,104.24,0.47355065]
[1770077180126,5.36086188,104.3,104.24,0.47355065]
[1770077180404,9.58864704,104.29,104.26,0.48804143]
[1770077180605,9.58864704,104.29,104.26,4.02937974]
[1770077180803,9.58864704,104.29,104.27,0.48804143]
[1770077181187,27.72519573,104.3,104.28,0.48804143]
[1770077181188,9.58801491,104.3,104.28,0.48804143]
[1770077182012,9.58727718,104.31,104.29,0.48804143]
[1770077183010,13.34042846,104.32,104.29,0.48804143]
[1770077183315,9.58634076,104.32,104.29,4.02937974]
[1770077183495,9.58634076,104.32,104.3,0.48804143]
[1770077183696,13.33953342,104.33,104.3,0.48804143]
[1770077184013,9.58544572,104.33,104.3,4.02937974]
[1770077184191,9.58430934,104.34,104.32,0.48804143]
[1770077184391,4.03071323,104.33,104.29,3.54133831]
[1770077184799,4.03071323,104.33,104.27,9.58983335]
[1770077185110,4.03071323,104.33,104.28,3.54133831]
[1770077185814,4.03071323,104.33,104.29,3.54133831]
[1770077186394,13.61615936,104.33,104.3,0.48804143]
[1770077187310,0.48937492,104.3,104.27,0.48804143]
[1770077187496,4.03071323,104.3,104.27,0.48804143]
[1770077188615,9.58788204,104.3,104.27,0.48804143]
[1770077190095,13.61859527,104.3,104.27,0.48804143]
[1770077191711,4.03071323,104.28,104.25,0.48804143]
[1770077192018,3.54133831,104.28,104.25,0.48804143]
[1770077192601,4.03071323,104.27,104.24,0.48804143]
[1770077192797,4.03071323,104.26,104.23,0.48804143]
[1770077193114,3.54133831,104.25,104.23,0.48804143]
[1770077193699,10.08092231,104.26,104.23,0.48804143]
[1770077193700,13.62226062,104.26,104.23,0.48804143]
[1770077197822,13.1328857,104.26,104.23,0.48804143]
[1770077198413,3.54133831,104.25,104.23,0.48804143]
[1770077199718,4.03071323,104.24,104.21,0.48804143]
[1770077200017,3.54133831,104.23,104.2,0.48804143]
[1770077200424,3.54378174,104.23,104.2,0.48804143]
[1770077203819,13.13830741,104.23,104.2,0.48804143]
[1770077208528,9.59452567,104.23,104.2,0.48804143]
[1770077210527,9.59452567,104.23,104.21,0.49596807]
[1770077210920,13.13830741,104.23,104.21,0.49596807]
[1770077214135,13.61568971,104.23,104.2,0.49596807]
[1770077219246,4.02116404,104.22,104.2,0.49596807]
[1770077219540,4.02116404,104.22,104.19,0.69596807]
[1770077219745,34.05732483,104.23,104.2,0.49596807]
[1770077219917,37.60110657,104.23,104.2,0.49596807]
[1770077220625,4.02116404,104.22,104.19,0.69596807]
[1770077220828,4.02116404,104.21,104.19,0.2]
[1770077221139,4.02116404,104.2,104.17,0.49596807]
[1770077221345,0.4773823,104.19,104.17,0.49596807]
[1770077221546,0.4773823,104.19,104.16,0.49596807]
[1770077221946,37.611202,104.2,104.16,0.49596807]
[1770077222528,0.4773823,104.16,104.14,0.5250369]
[1770077222843,4.02116404,104.15,104.12,0.2]
[1770077223050,3.54378174,104.14,104.12,0.2]
[1770077223240,13.14639441,104.14,104.12,0.69960459]
[1770077223639,0.4773823,104.15,104.12,0.69960459]
[1770077223640,10.0794089,104.15,104.12,0.69960459]
[1770077223823,3.54378174,104.16,104.13,0.49960459]
[1770077224227,3.54378174,104.15,104.13,0.49960459]
[1770077224447,3.54378174,104.15,104.12,0.69960459]